[Event "Titled Tuesday Blitz April 18 Late 2023"]
[White "Rustemov, Alexander"]
[Black "Jovic, Stanoje"]
[WhiteFideId "4119002"]
[BlackFideId "905020"]
[WhiteElo "2855"]
[BlackElo "2236"]
[Result "1-0"]
[Round "03"]
[TimeControl "180+2"]
[Date "2023.04.18"]
[WhiteClock "0:00:22"]
[BlackClock "0:00:04"]

1. d4 {[%clk 0:02:52]}  Nf6 {[%clk 0:02:59]} 2. c4 {[%clk 0:02:48]}  e6 {[%clk 0:02:59]} 3. Nf3 {[%clk 0:02:48]}  b6 {[%clk 0:02:58]} 4. a3 {[%clk 0:02:48]}  d5 {[%clk 0:02:57]} 5. cxd5 {[%clk 0:02:46]}  exd5 {[%clk 0:02:57]} 6. Bg5 {[%clk 0:02:46]}  h6 {[%clk 0:02:52]} 7. Bh4 {[%clk 0:02:40]}  Be7 {[%clk 0:02:52]} 8. Nc3 {[%clk 0:02:39]}  O-O {[%clk 0:02:51]} 9. e3 {[%clk 0:02:38]}  Bb7 {[%clk 0:02:43]} 10. Bd3 {[%clk 0:02:35]}  Ne4 {[%clk 0:02:41]} 11. Bxe7 {[%clk 0:02:32]}  Qxe7 {[%clk 0:02:41]} 12. Rc1 {[%clk 0:02:30]}  c5 {[%clk 0:02:38]} 13. O-O {[%clk 0:02:28]}  Nd7 {[%clk 0:02:32]} 14. dxc5 {[%clk 0:02:26]}  bxc5 {[%clk 0:02:32]} 15. Re1 {[%clk 0:02:12]}  Rfd8 {[%clk 0:02:30]} 16. Qc2 {[%clk 0:02:09]}  Ndf6 {[%clk 0:02:25]} 17. h3 {[%clk 0:02:07]}  Rac8 {[%clk 0:02:24]} 18. Nd2 {[%clk 0:01:40]}  Re8 {[%clk 0:02:17]} 19. Ndxe4 {[%clk 0:01:31]}  Nxe4 {[%clk 0:02:12]} 20. Bxe4 {[%clk 0:01:28]}  dxe4 {[%clk 0:02:12]} 21. Red1 {[%clk 0:01:27]}  Qg5 {[%clk 0:02:06]} 22. Ne2 {[%clk 0:01:23]}  Ba6 {[%clk 0:01:55]} 23. Nf4 {[%clk 0:01:21]}  Qe5 {[%clk 0:01:50]} 24. Rd5 {[%clk 0:01:20]}  Qe7 {[%clk 0:01:44]} 25. Rxc5 {[%clk 0:01:05]}  Rxc5 {[%clk 0:01:36]} 26. Qxc5 {[%clk 0:01:06]}  Qb7 {[%clk 0:01:20]} 27. b4 {[%clk 0:01:04]}  Bd3 {[%clk 0:01:12]} 28. Qc6 {[%clk 0:01:00]}  Qb8 {[%clk 0:01:07]} 29. Qd7 {[%clk 0:00:45]}  Rd8 {[%clk 0:00:59]} 30. Qc7 {[%clk 0:00:43]}  Qa8 {[%clk 0:00:56]} 31. Nh5 {[%clk 0:00:37]}  Re8 {[%clk 0:00:31]} 32. Qg3 {[%clk 0:00:35]}  g6 {[%clk 0:00:23]} 33. Nf6+ {[%clk 0:00:35]}  Kg7 {[%clk 0:00:21]} 34. Nxe8+ {[%clk 0:00:34]}  Qxe8 {[%clk 0:00:21]} 35. Rc7 {[%clk 0:00:32]}  a6 {[%clk 0:00:19]} 36. Qd6 {[%clk 0:00:29]}  h5 {[%clk 0:00:15]} 37. Qe7 {[%clk 0:00:26]}  Qg8 {[%clk 0:00:12]} 38. h4 {[%clk 0:00:25]}  Bb1 {[%clk 0:00:05]} 39. a4 {[%clk 0:00:24]}  Bd3 {[%clk 0:00:05]} 40. Kh2 {[%clk 0:00:23]}  Bb1 {[%clk 0:00:03]} 41. b5 {[%clk 0:00:23]}  axb5 {[%clk 0:00:04]} 42. axb5 {[%clk 0:00:24]}  Ba2 {[%clk 0:00:04]} 43. Qe5+ {[%clk 0:00:22]} 1-0


[Site "https://www.chess.com"]

[Event "Titled Tuesday Blitz April 18 Late 2023"]
[White "Shubenkova, Veronika"]
[Black "Fier, Alexandr"]
[WhiteFideId "44124040"]
[BlackFideId "2107139"]
[WhiteElo "2027"]
[BlackElo "2610"]
[Result "0-1"]
[Round "03"]
[TimeControl "180+2"]
[Date "2023.04.18"]
[WhiteClock "0:00:04"]
[BlackClock "0:00:15"]

1. e4 {[%clk 0:03:00]}  c5 {[%clk 0:02:59]} 2. Nc3 {[%clk 0:03:00]}  a6 {[%clk 0:02:59]} 3. g3 {[%clk 0:03:00]}  b5 {[%clk 0:02:59]} 4. Bg2 {[%clk 0:03:01]}  Bb7 {[%clk 0:03:00]} 5. d3 {[%clk 0:03:00]}  e6 {[%clk 0:03:00]} 6. Bd2 {[%clk 0:03:00]}  Nc6 {[%clk 0:02:58]} 7. f4 {[%clk 0:03:00]}  Be7 {[%clk 0:02:58]} 8. Nf3 {[%clk 0:03:00]}  Qc7 {[%clk 0:02:59]} 9. O-O {[%clk 0:03:00]}  d6 {[%clk 0:02:56]} 10. Ne2 {[%clk 0:03:00]}  Nf6 {[%clk 0:02:56]} 11. h3 {[%clk 0:03:00]}  Nd7 {[%clk 0:02:54]} 12. g4 {[%clk 0:03:00]}  d5 {[%clk 0:02:51]} 13. Ng3 {[%clk 0:03:00]}  dxe4 {[%clk 0:02:51]} 14. Nxe4 {[%clk 0:02:59]}  h5 {[%clk 0:02:49]} 15. g5 {[%clk 0:02:59]}  g6 {[%clk 0:02:49]} 16. Bc3 {[%clk 0:02:57]}  Rf8 {[%clk 0:02:46]} 17. Nf6+ {[%clk 0:02:42]}  Nxf6 {[%clk 0:02:44]} 18. gxf6 {[%clk 0:02:41]}  Bd6 {[%clk 0:02:45]} 19. Ne5 {[%clk 0:02:39]}  O-O-O {[%clk 0:02:37]} 20. Nxc6 {[%clk 0:02:33]}  Bxc6 {[%clk 0:02:38]} 21. Bxc6 {[%clk 0:02:29]}  Qxc6 {[%clk 0:02:39]} 22. Qe2 {[%clk 0:02:26]}  Kb7 {[%clk 0:02:37]} 23. a3 {[%clk 0:02:25]}  Bc7 {[%clk 0:02:35]} 24. Rae1 {[%clk 0:02:23]}  Rd5 {[%clk 0:02:34]} 25. h4 {[%clk 0:02:21]}  Rfd8 {[%clk 0:02:34]} 26. Qg2 {[%clk 0:02:20]}  Rf5 {[%clk 0:02:31]} 27. Re4 {[%clk 0:02:13]}  Rdd5 {[%clk 0:02:22]} 28. b4 {[%clk 0:01:57]}  cxb4 {[%clk 0:02:16]} 29. Bxb4 {[%clk 0:01:56]}  Rxf6 {[%clk 0:02:16]} 30. c4 {[%clk 0:01:56]}  Rxd3 {[%clk 0:02:13]} 31. cxb5 {[%clk 0:01:55]}  axb5 {[%clk 0:02:13]} 32. a4 {[%clk 0:01:49]}  Bb6+ {[%clk 0:02:08]} 33. Kh2 {[%clk 0:01:44]}  bxa4 {[%clk 0:01:52]} 34. Be7 {[%clk 0:01:40]}  Rf5 {[%clk 0:01:52]} 35. Rb1 {[%clk 0:01:32]}  Rb3 {[%clk 0:01:51]} 36. Rc1 {[%clk 0:01:23]}  Qd5 {[%clk 0:01:22]} 37. Qc2 {[%clk 0:01:21]}  Rb2 {[%clk 0:01:06]} 38. Qxb2 {[%clk 0:01:17]}  Qxe4 {[%clk 0:01:06]} 39. Bd6 {[%clk 0:01:14]}  Rxf4 {[%clk 0:00:50]} 40. Bxf4 {[%clk 0:01:12]}  Qxf4+ {[%clk 0:00:50]} 41. Kg2 {[%clk 0:01:10]}  Qe4+ {[%clk 0:00:49]} 42. Kf1 {[%clk 0:01:04]}  Qd3+ {[%clk 0:00:49]} 43. Kg2 {[%clk 0:00:57]}  a3 {[%clk 0:00:49]} 44. Qb4 {[%clk 0:00:48]}  a2 {[%clk 0:00:48]} 45. Qe7+ {[%clk 0:00:09]}  Ka6 {[%clk 0:00:47]} 46. Qb4 {[%clk 0:00:08]}  Qe2+ {[%clk 0:00:36]} 47. Kh1 {[%clk 0:00:08]}  Qf3+ {[%clk 0:00:35]} 48. Kh2 {[%clk 0:00:08]}  Qf2+ {[%clk 0:00:35]} 49. Kh1 {[%clk 0:00:08]}  Qd4 {[%clk 0:00:24]} 50. Qa3+ {[%clk 0:00:07]}  Kb5 {[%clk 0:00:20]} 51. Qb3+ {[%clk 0:00:07]}  Qb4 {[%clk 0:00:20]} 52. Qxa2 {[%clk 0:00:07]}  Qxh4+ {[%clk 0:00:20]} 53. Kg2 {[%clk 0:00:07]}  Qg4+ {[%clk 0:00:20]} 54. Kh1 {[%clk 0:00:06]}  Qh3+ {[%clk 0:00:21]} 55. Qh2 {[%clk 0:00:05]}  Qxh2+ {[%clk 0:00:21]} 56. Kxh2 {[%clk 0:00:06]}  Bd4 {[%clk 0:00:18]} 57. Rc7 {[%clk 0:00:05]}  f5 {[%clk 0:00:17]} 58. Kg3 {[%clk 0:00:05]}  e5 {[%clk 0:00:17]} 59. Kh4 {[%clk 0:00:05]}  e4 {[%clk 0:00:16]} 60. Kg5 {[%clk 0:00:04]}  e3 {[%clk 0:00:15]} 61. Re7 {[%clk 0:00:04]}  Kc4 {[%clk 0:00:14]} 62. Kxg6 {[%clk 0:00:04]}  f4 {[%clk 0:00:15]} 63. Kxh5 {[%clk 0:00:04]}  f3 {[%clk 0:00:15]} 64. Kg4 {[%clk 0:00:04]}  f2 {[%clk 0:00:15]} 0-1


[Site "https://www.chess.com"]

[Event "Titled Tuesday Blitz April 18 Late 2023"]
[White "Koc, Przemyslaw"]
[Black "Timmermans, Mark"]
[WhiteFideId "1109081"]
[BlackFideId "1026399"]
[WhiteElo "2161"]
[BlackElo "2460"]
[Result "1/2-1/2"]
[Round "03"]
[TimeControl "180+2"]
[Date "2023.04.18"]
[WhiteClock "0:00:18"]
[BlackClock "0:00:24"]

1. d4 {[%clk 0:03:00]}  Nf6 {[%clk 0:02:59]} 2. Bg5 {[%clk 0:02:59]}  Ne4 {[%clk 0:02:59]} 3. Bf4 {[%clk 0:02:59]}  c5 {[%clk 0:02:58]} 4. dxc5 {[%clk 0:03:00]}  Qa5+ {[%clk 0:02:55]} 5. Nd2 {[%clk 0:03:00]}  Nxd2 {[%clk 0:02:54]} 6. Qxd2 {[%clk 0:03:00]}  Qxc5 {[%clk 0:02:54]} 7. e4 {[%clk 0:03:00]}  Nc6 {[%clk 0:02:54]} 8. Be3 {[%clk 0:03:00]}  Qe5 {[%clk 0:02:50]} 9. O-O-O {[%clk 0:02:55]}  d6 {[%clk 0:02:42]} 10. Bd3 {[%clk 0:02:52]}  Bg4 {[%clk 0:02:36]} 11. f3 {[%clk 0:02:51]}  Bd7 {[%clk 0:02:35]} 12. f4 {[%clk 0:02:51]}  Qa5 {[%clk 0:02:36]} 13. Qxa5 {[%clk 0:02:47]}  Nxa5 {[%clk 0:02:37]} 14. Nf3 {[%clk 0:02:47]}  Nc6 {[%clk 0:02:17]} 15. a3 {[%clk 0:02:46]}  g6 {[%clk 0:02:17]} 16. e5 {[%clk 0:02:42]}  dxe5 {[%clk 0:02:14]} 17. Nxe5 {[%clk 0:02:42]}  Nxe5 {[%clk 0:02:14]} 18. fxe5 {[%clk 0:02:43]}  Bg7 {[%clk 0:02:14]} 19. Bf4 {[%clk 0:02:34]}  O-O {[%clk 0:01:59]} 20. Be4 {[%clk 0:02:34]}  Bg4 {[%clk 0:01:44]} 21. Bxb7 {[%clk 0:02:24]}  Rab8 {[%clk 0:01:13]} 22. Bf3 {[%clk 0:02:24]}  Bxf3 {[%clk 0:01:13]} 23. gxf3 {[%clk 0:02:24]}  Rb7 {[%clk 0:01:13]} 24. b4 {[%clk 0:02:06]}  a5 {[%clk 0:01:11]} 25. c3 {[%clk 0:02:05]}  f6 {[%clk 0:00:54]} 26. e6 {[%clk 0:02:01]}  f5 {[%clk 0:00:55]} 27. Rd7 {[%clk 0:01:38]}  Rb6 {[%clk 0:00:53]} 28. Rxe7 {[%clk 0:01:30]}  Bxc3 {[%clk 0:00:53]} 29. Rd1 {[%clk 0:01:17]}  axb4 {[%clk 0:00:48]} 30. Rd6 {[%clk 0:00:47]}  Rxd6 {[%clk 0:00:42]} 31. Bxd6 {[%clk 0:00:47]}  Rc8 {[%clk 0:00:43]} 32. Kb1 {[%clk 0:00:32]}  bxa3 {[%clk 0:00:41]} 33. Bxa3 {[%clk 0:00:31]}  Bg7 {[%clk 0:00:41]} 34. Rd7 {[%clk 0:00:28]}  Re8 {[%clk 0:00:41]} 35. Be7 {[%clk 0:00:24]}  g5 {[%clk 0:00:33]} 36. Kc2 {[%clk 0:00:23]}  g4 {[%clk 0:00:30]} 37. fxg4 {[%clk 0:00:22]}  fxg4 {[%clk 0:00:31]} 38. Kd3 {[%clk 0:00:23]}  Bf8 {[%clk 0:00:29]} 39. Bxf8 {[%clk 0:00:22]}  Kxf8 {[%clk 0:00:30]} 40. Rxh7 {[%clk 0:00:20]}  Rxe6 {[%clk 0:00:31]} 41. Rh4 {[%clk 0:00:19]}  Kg7 {[%clk 0:00:28]} 42. Rxg4+ {[%clk 0:00:19]}  Rg6 {[%clk 0:00:28]} 43. h3 {[%clk 0:00:17]}  Rxg4 {[%clk 0:00:23]} 44. hxg4 {[%clk 0:00:17]}  Kf6 {[%clk 0:00:23]} 45. g5+ {[%clk 0:00:18]}  Kxg5 {[%clk 0:00:24]} 1/2-1/2


[Site "https://www.chess.com"]

[Event "Titled Tuesday Blitz April 18 Late 2023"]
[White "QuiesPrecatio"]
[Black "Holt, Conrad"]
[BlackFideId "2034387"]
[WhiteElo "2453"]
[BlackElo "2592"]
[Result "0-1"]
[Round "03"]
[TimeControl "180+2"]
[Date "2023.04.18"]
[WhiteClock "0:00:12"]
[BlackClock "0:01:03"]

1. d4 {[%clk 0:03:00]}  d5 {[%clk 0:03:00]} 2. c4 {[%clk 0:02:55]}  c6 {[%clk 0:03:00]} 3. cxd5 {[%clk 0:02:53]}  cxd5 {[%clk 0:03:00]} 4. Nc3 {[%clk 0:02:54]}  Nc6 {[%clk 0:03:00]} 5. Bf4 {[%clk 0:02:54]}  Nf6 {[%clk 0:02:59]} 6. e3 {[%clk 0:02:53]}  Bf5 {[%clk 0:02:59]} 7. Nf3 {[%clk 0:02:54]}  e6 {[%clk 0:02:56]} 8. Qb3 {[%clk 0:02:53]}  Bb4 {[%clk 0:02:55]} 9. Bb5 {[%clk 0:02:54]}  Bxc3+ {[%clk 0:02:52]} 10. Qxc3 {[%clk 0:02:53]}  O-O {[%clk 0:02:52]} 11. O-O {[%clk 0:02:47]}  Rc8 {[%clk 0:02:41]} 12. Rfc1 {[%clk 0:02:35]}  Ne4 {[%clk 0:02:37]} 13. Qe1 {[%clk 0:02:34]}  g5 {[%clk 0:02:36]} 14. Bg3 {[%clk 0:02:25]}  h5 {[%clk 0:02:35]} 15. h3 {[%clk 0:02:03]}  Qb6 {[%clk 0:02:29]} 16. Bxc6 {[%clk 0:01:58]}  Rxc6 {[%clk 0:02:28]} 17. Rxc6 {[%clk 0:01:58]}  bxc6 {[%clk 0:02:28]} 18. b3 {[%clk 0:01:57]}  c5 {[%clk 0:02:15]} 19. dxc5 {[%clk 0:01:56]}  Qxc5 {[%clk 0:02:15]} 20. Be5 {[%clk 0:01:56]}  Rc8 {[%clk 0:02:10]} 21. Bd4 {[%clk 0:01:38]}  Qc7 {[%clk 0:02:04]} 22. Be5 {[%clk 0:01:17]}  Qe7 {[%clk 0:02:04]} 23. Bb2 {[%clk 0:01:10]}  Rc2 {[%clk 0:01:58]} 24. Bd4 {[%clk 0:00:46]}  Nxf2 {[%clk 0:01:52]} 25. Qa5 {[%clk 0:00:41]}  Be4 {[%clk 0:01:43]} 26. Qxa7 {[%clk 0:00:37]}  Nxh3+ {[%clk 0:01:38]} 27. gxh3 {[%clk 0:00:35]}  Qxa7 {[%clk 0:01:35]} 28. Bxa7 {[%clk 0:00:35]}  Bxf3 {[%clk 0:01:36]} 29. a4 {[%clk 0:00:32]}  g4 {[%clk 0:01:28]} 30. hxg4 {[%clk 0:00:28]}  h4 {[%clk 0:01:22]} 31. Rf1 {[%clk 0:00:17]}  Rg2+ {[%clk 0:01:17]} 32. Kh1 {[%clk 0:00:18]}  Be4 {[%clk 0:01:13]} 33. Rf4 {[%clk 0:00:14]}  h3 {[%clk 0:01:09]} 34. Bb8 {[%clk 0:00:11]}  Rb2+ {[%clk 0:01:05]} 35. Rxe4 {[%clk 0:00:11]}  dxe4 {[%clk 0:01:06]} 36. a5 {[%clk 0:00:11]}  Rxb3 {[%clk 0:01:05]} 37. Bc7 {[%clk 0:00:11]}  Rxe3 {[%clk 0:01:04]} 38. a6 {[%clk 0:00:12]}  Ra3 {[%clk 0:01:03]} 0-1


[Site "https://www.chess.com"]

[Event "Titled Tuesday Blitz April 18 Late 2023"]
[White "D`Arruda, Ricardo D."]
[Black "Klukin, Kirill"]
[WhiteFideId "100692"]
[BlackFideId "24199273"]
[WhiteElo "2442"]
[BlackElo "2344"]
[Result "1/2-1/2"]
[Round "03"]
[TimeControl "180+2"]
[Date "2023.04.18"]
[WhiteClock "0:00:13"]
[BlackClock "0:00:09"]

1. d4 {[%clk 0:03:00]}  Nf6 {[%clk 0:03:00]} 2. Nf3 {[%clk 0:02:59]}  e6 {[%clk 0:02:59]} 3. Nc3 {[%clk 0:02:58]}  d5 {[%clk 0:02:59]} 4. g3 {[%clk 0:02:57]}  Bb4 {[%clk 0:02:57]} 5. Bg2 {[%clk 0:02:56]}  O-O {[%clk 0:02:58]} 6. O-O {[%clk 0:02:55]}  Bxc3 {[%clk 0:02:56]} 7. bxc3 {[%clk 0:02:55]}  Nbd7 {[%clk 0:02:55]} 8. a4 {[%clk 0:02:45]}  a5 {[%clk 0:02:52]} 9. Qd3 {[%clk 0:02:36]}  b6 {[%clk 0:02:51]} 10. Ba3 {[%clk 0:02:27]}  Ba6 {[%clk 0:02:50]} 11. Qe3 {[%clk 0:02:23]}  Re8 {[%clk 0:02:49]} 12. Ne5 {[%clk 0:02:20]}  Nxe5 {[%clk 0:02:49]} 13. dxe5 {[%clk 0:02:21]}  Nd7 {[%clk 0:02:38]} 14. f4 {[%clk 0:02:21]}  c5 {[%clk 0:02:31]} 15. h4 {[%clk 0:02:16]}  Qc7 {[%clk 0:02:23]} 16. h5 {[%clk 0:02:14]}  h6 {[%clk 0:02:19]} 17. g4 {[%clk 0:02:04]}  b5 {[%clk 0:02:15]} 18. axb5 {[%clk 0:02:03]}  Bxb5 {[%clk 0:02:16]} 19. Rf2 {[%clk 0:01:48]}  Rac8 {[%clk 0:02:08]} 20. Qg3 {[%clk 0:01:48]}  f6 {[%clk 0:01:23]} 21. exf6 {[%clk 0:01:44]}  Nxf6 {[%clk 0:01:19]} 22. Qh4 {[%clk 0:01:26]}  Qf7 {[%clk 0:01:11]} 23. Bf3 {[%clk 0:01:25]}  Nd7 {[%clk 0:00:33]} 24. g5 {[%clk 0:01:21]}  Bc6 {[%clk 0:00:32]} 25. Bc1 {[%clk 0:01:09]}  d4 {[%clk 0:00:22]} 26. Rxa5 {[%clk 0:01:04]}  Bxf3 {[%clk 0:00:22]} 27. Rxf3 {[%clk 0:01:04]}  Qf5 {[%clk 0:00:22]} 28. Ra7 {[%clk 0:00:56]}  Red8 {[%clk 0:00:04]} 29. gxh6 {[%clk 0:00:53]}  Qxc2 {[%clk 0:00:04]} 30. Qe7 {[%clk 0:00:30]}  Qh7 {[%clk 0:00:03]} 31. Rg3 {[%clk 0:00:29]}  Qxh6 {[%clk 0:00:03]} 32. Rxd7 {[%clk 0:00:27]}  Rxd7 {[%clk 0:00:04]} 33. Qxd7 {[%clk 0:00:27]}  Rf8 {[%clk 0:00:05]} 34. Kg2 {[%clk 0:00:20]}  Rf7 {[%clk 0:00:04]} 35. Qd8+ {[%clk 0:00:20]}  Rf8 {[%clk 0:00:05]} 36. Qe7 {[%clk 0:00:18]}  Qh7 {[%clk 0:00:05]} 37. Qd7 {[%clk 0:00:17]}  Qe4+ {[%clk 0:00:04]} 38. Kh3 {[%clk 0:00:15]}  Rf7 {[%clk 0:00:05]} 39. Qe8+ {[%clk 0:00:15]}  Rf8 {[%clk 0:00:06]} 40. Qg6 {[%clk 0:00:15]}  Qxg6 {[%clk 0:00:06]} 41. Rxg6 {[%clk 0:00:15]}  dxc3 {[%clk 0:00:05]} 42. Rxe6 {[%clk 0:00:15]}  Ra8 {[%clk 0:00:05]} 43. Re3 {[%clk 0:00:14]}  c2 {[%clk 0:00:05]} 44. Rc3 {[%clk 0:00:14]}  Ra2 {[%clk 0:00:04]} 45. Be3 {[%clk 0:00:13]}  Kh7 {[%clk 0:00:05]} 46. Rxc5 {[%clk 0:00:13]}  Ra3 {[%clk 0:00:05]} 47. Kg2 {[%clk 0:00:12]}  Rxe3 {[%clk 0:00:05]} 48. Rxc2 {[%clk 0:00:12]}  Kh6 {[%clk 0:00:05]} 49. Kf2 {[%clk 0:00:12]}  Rh3 {[%clk 0:00:05]} 50. Rc5 {[%clk 0:00:11]}  Kh7 {[%clk 0:00:05]} 51. e3 {[%clk 0:00:10]}  Kg8 {[%clk 0:00:06]} 52. Ke2 {[%clk 0:00:10]}  Kf7 {[%clk 0:00:07]} 53. Kd3 {[%clk 0:00:11]}  Kf6 {[%clk 0:00:07]} 54. Ke4 {[%clk 0:00:12]}  Ke6 {[%clk 0:00:07]} 55. Rg5 {[%clk 0:00:12]}  Kf6 {[%clk 0:00:07]} 56. Rf5+ {[%clk 0:00:12]}  Ke6 {[%clk 0:00:07]} 57. Rg5 {[%clk 0:00:12]}  Kf6 {[%clk 0:00:08]} 58. Rg6+ {[%clk 0:00:13]}  Kf7 {[%clk 0:00:08]} 59. Rg5 {[%clk 0:00:13]}  Kf6 {[%clk 0:00:09]} 1/2-1/2


[Site "https://www.chess.com"]

[Event "Titled Tuesday Blitz April 18 Late 2023"]
[White "WindWhistler11"]
[Black "Matinian, Nikita"]
[BlackFideId "24129100"]
[WhiteElo "2437"]
[BlackElo "2422"]
[Result "0-1"]
[Round "03"]
[TimeControl "180+2"]
[Date "2023.04.18"]
[WhiteClock "0:01:19"]
[BlackClock "0:02:10"]

1. Nf3 {[%clk 0:02:54]}  Nf6 {[%clk 0:02:59]} 2. g3 {[%clk 0:02:52]}  g6 {[%clk 0:03:00]} 3. Bg2 {[%clk 0:02:51]}  Bg7 {[%clk 0:02:59]} 4. O-O {[%clk 0:02:51]}  O-O {[%clk 0:03:00]} 5. c3 {[%clk 0:02:48]}  d6 {[%clk 0:03:01]} 6. a4 {[%clk 0:02:43]}  c5 {[%clk 0:02:57]} 7. b4 {[%clk 0:02:35]}  cxb4 {[%clk 0:02:54]} 8. cxb4 {[%clk 0:02:36]}  Ne4 {[%clk 0:02:55]} 9. Ra3 {[%clk 0:02:36]}  a5 {[%clk 0:02:53]} 10. b5 {[%clk 0:02:35]}  Nd7 {[%clk 0:02:44]} 11. Ne1 {[%clk 0:02:34]}  f5 {[%clk 0:02:42]} 12. f3 {[%clk 0:02:27]}  Nef6 {[%clk 0:02:42]} 13. d4 {[%clk 0:02:27]}  Nb6 {[%clk 0:02:37]} 14. e4 {[%clk 0:02:05]}  fxe4 {[%clk 0:02:30]} 15. fxe4 {[%clk 0:02:06]}  Bg4 {[%clk 0:02:30]} 16. Qb3+ {[%clk 0:02:03]}  Kh8 {[%clk 0:02:29]} 17. Be3 {[%clk 0:01:30]}  Be2 {[%clk 0:02:19]} 18. Rf2 {[%clk 0:01:30]}  Bc4 {[%clk 0:02:19]} 19. Qd1 {[%clk 0:01:28]}  d5 {[%clk 0:02:14]} 20. e5 {[%clk 0:01:22]}  Ne4 {[%clk 0:02:14]} 21. Rxf8+ {[%clk 0:01:23]}  Qxf8 {[%clk 0:02:14]} 22. Nf3 {[%clk 0:01:19]}  e6 {[%clk 0:02:12]} 23. Nbd2 {[%clk 0:01:19]}  Qxa3 {[%clk 0:02:10]} 0-1


[Site "https://www.chess.com"]

[Event "Titled Tuesday Blitz April 18 Late 2023"]
[White "Mackster23"]
[Black "Yarar, Bora"]
[BlackFideId "34588400"]
[WhiteElo "2429"]
[BlackElo "2273"]
[Result "0-1"]
[Round "03"]
[TimeControl "180+2"]
[Date "2023.04.18"]
[WhiteClock "0:00:03"]
[BlackClock "0:01:58"]

1. e4 {[%clk 0:03:00]}  e6 {[%clk 0:03:00]} 2. d4 {[%clk 0:03:00]}  d5 {[%clk 0:03:01]} 3. Nc3 {[%clk 0:03:00]}  Nf6 {[%clk 0:03:01]} 4. Bg5 {[%clk 0:02:58]}  Be7 {[%clk 0:03:01]} 5. e5 {[%clk 0:02:58]}  Nfd7 {[%clk 0:03:02]} 6. h4 {[%clk 0:02:59]}  O-O {[%clk 0:03:01]} 7. Nh3 {[%clk 0:02:38]}  c5 {[%clk 0:02:55]} 8. Bxe7 {[%clk 0:02:01]}  Qxe7 {[%clk 0:02:54]} 9. Nb5 {[%clk 0:02:01]}  cxd4 {[%clk 0:02:52]} 10. Nc7 {[%clk 0:01:53]}  Qb4+ {[%clk 0:02:46]} 11. Qd2 {[%clk 0:01:53]}  Qxb2 {[%clk 0:02:45]} 12. Rd1 {[%clk 0:01:51]}  Nxe5 {[%clk 0:02:35]} 13. Nxa8 {[%clk 0:01:48]}  Nbc6 {[%clk 0:02:35]} 14. Nc7 {[%clk 0:01:34]}  a6 {[%clk 0:02:32]} 15. Nf4 {[%clk 0:01:28]}  Qb6 {[%clk 0:02:25]} 16. Ncxd5 {[%clk 0:01:10]}  exd5 {[%clk 0:02:25]} 17. Bd3 {[%clk 0:01:07]}  Re8 {[%clk 0:02:26]} 18. O-O {[%clk 0:01:06]}  Qd8 {[%clk 0:02:25]} 19. Rde1 {[%clk 0:00:22]}  Qxh4 {[%clk 0:02:22]} 20. Nxd5 {[%clk 0:00:22]}  h6 {[%clk 0:02:15]} 21. Qf4 {[%clk 0:00:22]}  Qd8 {[%clk 0:02:11]} 22. Nb4 {[%clk 0:00:18]}  Nxb4 {[%clk 0:02:01]} 23. Rxe5 {[%clk 0:00:18]}  Be6 {[%clk 0:02:02]} 24. Qe4 {[%clk 0:00:17]}  g6 {[%clk 0:02:02]} 25. Re1 {[%clk 0:00:16]}  Nc6 {[%clk 0:02:03]} 26. Rc5 {[%clk 0:00:15]}  Bd7 {[%clk 0:02:02]} 27. Qxe8+ {[%clk 0:00:01]}  Bxe8 {[%clk 0:02:03]} 28. Bc4 {[%clk 0:00:01]}  Kg7 {[%clk 0:02:01]} 29. Rd5 {[%clk 0:00:02]}  Qc8 {[%clk 0:01:59]} 30. Bd3 {[%clk 0:00:02]}  Bd7 {[%clk 0:01:58]} 31. Rxd4 {[%clk 0:00:03]} 0-1


[Site "https://www.chess.com"]

[Event "Titled Tuesday Blitz April 18 Late 2023"]
[White "Tregubov, Pavel V."]
[Black "Urbina Perez, Juan Antonio"]
[WhiteFideId "4115341"]
[BlackFideId "2217368"]
[WhiteElo "2425"]
[BlackElo "2197"]
[Result "1-0"]
[Round "03"]
[TimeControl "180+2"]
[Date "2023.04.18"]
[WhiteClock "0:00:11"]
[BlackClock "0:00:04"]

1. e4 {[%clk 0:03:00]}  c5 {[%clk 0:02:59]} 2. Nf3 {[%clk 0:03:00]}  d6 {[%clk 0:02:59]} 3. Bb5+ {[%clk 0:03:00]}  Bd7 {[%clk 0:02:59]} 4. Bxd7+ {[%clk 0:02:59]}  Nxd7 {[%clk 0:03:00]} 5. O-O {[%clk 0:02:59]}  Ngf6 {[%clk 0:03:00]} 6. Re1 {[%clk 0:02:59]}  e6 {[%clk 0:03:00]} 7. c3 {[%clk 0:02:59]}  Be7 {[%clk 0:03:01]} 8. d3 {[%clk 0:02:41]}  O-O {[%clk 0:02:59]} 9. Nbd2 {[%clk 0:02:38]}  Re8 {[%clk 0:02:53]} 10. d4 {[%clk 0:02:37]}  cxd4 {[%clk 0:02:48]} 11. cxd4 {[%clk 0:02:37]}  Rc8 {[%clk 0:02:47]} 12. e5 {[%clk 0:02:31]}  dxe5 {[%clk 0:02:44]} 13. dxe5 {[%clk 0:02:31]}  Nd5 {[%clk 0:02:44]} 14. Ne4 {[%clk 0:02:31]}  Nc5 {[%clk 0:02:44]} 15. Nxc5 {[%clk 0:02:16]}  Rxc5 {[%clk 0:02:41]} 16. a3 {[%clk 0:02:06]}  a6 {[%clk 0:02:10]} 17. Be3 {[%clk 0:02:05]}  Rc6 {[%clk 0:01:47]} 18. Bd4 {[%clk 0:02:02]}  Qd7 {[%clk 0:01:42]} 19. Qb3 {[%clk 0:01:53]}  Rec8 {[%clk 0:01:41]} 20. Rad1 {[%clk 0:01:52]}  h6 {[%clk 0:01:38]} 21. g3 {[%clk 0:01:46]}  Bc5 {[%clk 0:01:35]} 22. Kg2 {[%clk 0:01:21]}  Qc7 {[%clk 0:01:25]} 23. h4 {[%clk 0:01:08]}  Qb6 {[%clk 0:01:15]} 24. Qxb6 {[%clk 0:01:07]}  Bxb6 {[%clk 0:01:15]} 25. Re2 {[%clk 0:00:57]}  Bxd4 {[%clk 0:01:08]} 26. Nxd4 {[%clk 0:00:57]}  Rc1 {[%clk 0:01:07]} 27. Rxc1 {[%clk 0:00:55]}  Rxc1 {[%clk 0:01:08]} 28. Rc2 {[%clk 0:00:55]}  Rxc2 {[%clk 0:01:05]} 29. Nxc2 {[%clk 0:00:55]}  Kf8 {[%clk 0:01:06]} 30. Kf3 {[%clk 0:00:53]}  Ke7 {[%clk 0:01:06]} 31. Ke4 {[%clk 0:00:54]}  Kd7 {[%clk 0:01:05]} 32. Kd4 {[%clk 0:00:54]}  Kc6 {[%clk 0:01:03]} 33. a4 {[%clk 0:00:51]}  b5 {[%clk 0:01:01]} 34. a5 {[%clk 0:00:45]}  Ne7 {[%clk 0:00:58]} 35. g4 {[%clk 0:00:43]}  Nd5 {[%clk 0:00:57]} 36. h5 {[%clk 0:00:42]}  f6 {[%clk 0:00:56]} 37. exf6 {[%clk 0:00:39]}  gxf6 {[%clk 0:00:57]} 38. f3 {[%clk 0:00:37]}  Kd6 {[%clk 0:00:51]} 39. Ke4 {[%clk 0:00:32]}  Ke7 {[%clk 0:00:36]} 40. f4 {[%clk 0:00:31]}  Kd6 {[%clk 0:00:31]} 41. Nd4 {[%clk 0:00:25]}  Nb4 {[%clk 0:00:20]} 42. g5 {[%clk 0:00:23]}  fxg5 {[%clk 0:00:19]} 43. fxg5 {[%clk 0:00:23]}  hxg5 {[%clk 0:00:14]} 44. h6 {[%clk 0:00:20]}  Nd5 {[%clk 0:00:14]} 45. Nf3 {[%clk 0:00:17]}  Nf6+ {[%clk 0:00:12]} 46. Kd4 {[%clk 0:00:14]}  Nh7 {[%clk 0:00:12]} 47. Nd2 {[%clk 0:00:12]}  g4 {[%clk 0:00:11]} 48. Ne4+ {[%clk 0:00:12]}  Kc6 {[%clk 0:00:10]} 49. Ke5 {[%clk 0:00:13]}  b4 {[%clk 0:00:10]} 50. Kxe6 {[%clk 0:00:13]}  Kb5 {[%clk 0:00:05]} 51. Kf7 {[%clk 0:00:13]}  g3 {[%clk 0:00:05]} 52. Nxg3 {[%clk 0:00:11]}  Ng5+ {[%clk 0:00:05]} 53. Kg6 {[%clk 0:00:10]}  Ne6 {[%clk 0:00:05]} 54. Ne4 {[%clk 0:00:10]}  Nf8+ {[%clk 0:00:05]} 55. Kf7 {[%clk 0:00:09]}  Nh7 {[%clk 0:00:04]} 56. Kg7 {[%clk 0:00:09]}  Kxa5 {[%clk 0:00:03]} 57. Kxh7 {[%clk 0:00:09]}  Ka4 {[%clk 0:00:04]} 58. Kg6 {[%clk 0:00:10]}  Kb3 {[%clk 0:00:05]} 59. h7 {[%clk 0:00:10]}  Kxb2 {[%clk 0:00:05]} 60. h8=Q+ {[%clk 0:00:11]}  Kb3 {[%clk 0:00:05]} 61. Nc5+ {[%clk 0:00:10]}  Kc4 {[%clk 0:00:04]} 62. Nxa6 {[%clk 0:00:11]} 1-0


[Site "https://www.chess.com"]